bitfinex/quotes_BTCUSD_20250428
["timestamp","ask_amount","ask_price","bid_price","bid_amount"]
[1745878696417,0.23711646,94759.0,94758.0,0.01]
[1745878696647,0.24227849,94759.0,94758.0,0.01]
[1745878696900,0.14527849,94759.0,94758.0,0.01]
[1745878697330,0.02068547,94759.0,94758.0,0.01]
[1745878697543,0.01237787,94759.0,94758.0,0.01]
[1745878697766,0.005,94759.0,94756.0,0.21106842]
[1745878697988,0.005,94759.0,94756.0,0.22162184]
[1745878698216,0.01055386,94752.0,94744.0,0.22164814]
[1745878698427,0.01055386,94752.0,94739.0,0.21110491]
[1745878698428,0.01055408,94750.0,94742.0,0.01055498]
[1745878698639,0.11512655,94749.0,94743.0,0.21109738]
[1745878698844,0.11512655,94749.0,94745.0,0.22164693]
[1745878699281,0.11512655,94749.0,94746.0,0.01055453]
[1745878700063,0.11512655,94749.0,94747.0,0.21108822]
[1745878701072,0.10689014,94749.0,94747.0,0.21108822]
[1745878701737,0.10689014,94749.0,94746.0,0.01155453]
[1745878701945,0.00823334,94748.0,94747.0,0.21108847]
[1745878702122,0.10689014,94748.0,94747.0,0.21108847]
[1745878702333,0.00737787,94755.0,94754.0,0.21107288]
[1745878702559,0.11426801,94755.0,94754.0,0.21107288]
[1745878703010,0.12250597,94755.0,94754.0,0.21107288]
[1745878703439,0.1151281,94755.0,94754.0,0.21107288]
[1745878703929,0.1171281,94755.0,94746.0,0.22164158]
[1745878704141,0.31796302,94754.0,94747.0,0.01055442]
[1745878704375,0.0105542,94749.0,94738.0,0.21911488]
[1745878704639,0.10689014,94748.0,94741.0,0.01055509]
[1745878704852,0.11511402,94748.0,94741.0,0.01055509]
[1745878705279,0.01055442,94747.0,94743.0,0.01055486]
[1745878705450,0.10689014,94746.0,94743.0,0.01055486]
[1745878705649,0.01974908,94745.0,94743.0,0.01055486]
[1745878705870,0.10689014,94744.0,94743.0,0.01055486]
[1745878706073,0.11511095,94744.0,94741.0,0.01055509]
[1745878706230,0.02712695,94743.0,94741.0,0.01055509]
[1745878706431,0.11511249,94742.0,94741.0,0.01055509]
[1745878707499,0.12249036,94742.0,94741.0,0.01155509]
[1745878708443,0.11511249,94742.0,94741.0,0.01255509]
[1745878708737,0.11511249,94742.0,94741.0,0.01155509]
[1745878708943,0.11511249,94742.0,94741.0,0.01055509]
[1745878709143,0.11511249,94742.0,94741.0,0.01155509]
[1745878710828,0.11511249,94742.0,94741.0,0.01255509]
[1745878711830,0.13486842,94742.0,94741.0,0.01255509]
[1745878714623,0.13486842,94742.0,94741.0,0.002]
[1745878715846,0.34596803,94742.0,94741.0,0.002]
[1745878716548,0.3533459,94742.0,94741.0,0.002]
[1745878716979,0.3533459,94742.0,94741.0,0.001]
[1745878717201,0.33358997,94742.0,94740.0,0.02209821]
[1745878717669,0.16813099,94741.0,94740.0,0.02209821]
[1745878717916,0.2578375,94725.0,94723.0,0.0008478]
[1745878718155,0.18195201,94724.0,94723.0,0.0008478]
[1745878719055,0.54169048,94724.0,94723.0,0.0018478]
[1745878719287,0.54169048,94724.0,94723.0,0.00192945]
[1745878719563,0.64858062,94724.0,94723.0,0.00192945]
[1745878720031,0.54169048,94724.0,94723.0,0.00192945]
[1745878720230,0.54169048,94724.0,94723.0,0.00092945]
[1745878720664,0.27528726,94721.0,94720.0,0.0008478]
[1745878720873,0.06414085,94711.0,94703.0,0.000848]
[1745878721073,0.14116946,94710.0,94703.0,0.000848]
[1745878721281,0.69998854,94710.0,94703.0,0.000848]
[1745878721714,0.79808854,94710.0,94703.0,0.000848]
[1745878721926,0.80546641,94710.0,94703.0,0.000848]
[1745878722141,0.89942641,94710.0,94703.0,0.000848]
[1745878722350,0.90642641,94710.0,94703.0,0.000848]
[1745878723973,0.91935655,94710.0,94703.0,0.000848]
[1745878724180,1.01331655,94710.0,94703.0,0.000848]
[1745878724401,1.14497655,94710.0,94703.0,0.000848]
[1745878725460,1.13759868,94710.0,94703.0,0.000848]
[1745878725669,1.11786021,94710.0,94703.0,0.000848]
[1745878726005,1.14487685,94710.0,94703.0,0.000848]
[1745878726661,0.90632671,94710.0,94703.0,0.000848]
[1745878728100,0.56572517,94704.0,94703.0,0.000848]
[1745878728324,0.56572963,94702.0,94701.0,0.0005]
[1745878728535,0.85387103,94702.0,94701.0,0.0005]
[1745878728768,0.8612392,94702.0,94701.0,0.0005]
[1745878728954,2.9973502,94702.0,94701.0,0.0005]
[1745878729302,2.6475842,94702.0,94701.0,0.0005]
[1745878730423,2.58020972,94702.0,94701.0,0.0005]
[1745878730955,2.58020972,94702.0,94701.0,0.0015]
[1745878730956,2.58720972,94702.0,94701.0,0.0015]
[1745878731575,2.60901137,94702.0,94701.0,0.0015]
[1745878731971,1.91555537,94702.0,94701.0,0.0015]
[1745878732606,1.88203971,94702.0,94701.0,0.0015]
[1745878732809,1.98892985,94702.0,94701.0,0.0015]
[1745878733384,2.03422985,94702.0,94701.0,0.0015]
[1745878734034,2.03422985,94702.0,94700.0,0.01]
[1745878734035,0.35554085,94701.0,94700.0,1e-08]
[1745878734234,0.66584078,94697.0,94696.0,1e-08]
[1745878734467,0.66584078,94697.0,94691.0,1e-08]
[1745878734468,0.61155193,94692.0,94691.0,1e-08]
[1745878734681,0.61155193,94692.0,94683.0,0.0004242]
[1745878734682,0.56576977,94684.0,94683.0,0.0004242]
[1745878734963,1.51654091,94684.0,94683.0,0.0004242]
[1745878735172,1.37101791,94684.0,94683.0,0.0004242]
[1745878735397,1.31655338,94684.0,94683.0,0.0004242]
[1745878735627,1.29040589,94684.0,94683.0,0.0004242]
[1745878735841,1.34726642,94684.0,94683.0,0.0004242]
[1745878736289,1.45415656,94684.0,94683.0,0.0004242]
[1745878737164,0.56577424,94682.0,94681.0,1e-08]
[1745878737393,0.82034171,94682.0,94681.0,1e-08]
[1745878737613,0.56579209,94674.0,94673.0,1e-08]
[1745878737829,0.56579655,94672.0,94671.0,1e-08]
[1745878738029,0.72238669,94672.0,94671.0,1e-08]
[1745878738198,0.81440368,94672.0,94671.0,1e-08]
[1745878738433,0.02510452,94664.0,94641.0,0.0005]
[1745878738647,0.72160901,94662.0,94641.0,0.0005]
[1745878738859,0.75512467,94662.0,94661.0,0.00495513]
[1745878739045,0.82264307,94662.0,94661.0,0.00495513]
[1745878739258,0.84229154,94662.0,94661.0,0.00495513]
[1745878739880,0.84965971,94662.0,94661.0,0.00495513]
[1745878740016,0.85365971,94662.0,94661.0,0.01495513]
[1745878740220,0.85765971,94662.0,94661.0,0.01595513]
[1745878740607,0.86165971,94662.0,94661.0,0.01595513]
[1745878741234,0.5513115,94647.0,94641.0,0.0005]
[1745878741450,0.67274249,94647.0,94646.0,0.00211546]
[1745878741645,0.69943017,94647.0,94646.0,0.00211546]
[1745878742145,0.70679834,94647.0,94646.0,0.00211546]
[1745878742796,0.70779834,94647.0,94646.0,0.00211546]
[1745878743012,0.70879834,94647.0,94646.0,0.00211546]
[1745878745507,0.70143017,94647.0,94646.0,0.00211546]
[1745878745960,0.70143017,94647.0,94646.0,0.01211546]
[1745878747613,0.14295353,94647.0,94646.0,0.01211546]
[1745878747993,0.35426503,94647.0,94646.0,0.01211546]
[1745878748636,0.34688932,94647.0,94646.0,0.01211546]
[1745878749042,0.34588932,94647.0,94646.0,0.01211546]
[1745878749289,0.3594647,94647.0,94646.0,0.01411546]
[1745878749499,0.6994647,94647.0,94646.0,0.01511546]
[1745878749836,0.6994647,94647.0,94619.0,0.21137235]
[1745878749837,0.01056803,94625.0,94619.0,0.21137235]
[1745878750044,0.10689014,94624.0,94619.0,0.21150896]
[1745878750297,0.019683,94623.0,94621.0,0.01056847]
[1745878750496,0.11375575,94622.0,94619.0,0.22207928]
[1745878751332,0.11375575,94622.0,94620.0,0.21136968]
[1745878751565,0.0196926,94621.0,94620.0,0.21136968]
[1745878751746,0.13345143,94621.0,94620.0,0.21136968]
[1745878752918,0.13445143,94621.0,94620.0,0.21636968]
[1745878753529,0.13445143,94621.0,94620.0,0.22936968]
[1745878753718,0.12758274,94621.0,94620.0,0.018]
[1745878753936,0.13445143,94621.0,94620.0,0.018]
[1745878754333,0.14182714,94621.0,94620.0,0.018]
[1745878754736,0.14082714,94621.0,94620.0,0.013]
[1745878755159,0.14182714,94621.0,94620.0,0.017]
[1745878755564,0.14082714,94621.0,94620.0,0.013]
[1745878755768,0.14082714,94621.0,94620.0,0.01]
[1745878756131,0.14082714,94621.0,94620.0,0.013]
[1745878756333,0.14182714,94621.0,94620.0,0.012]
[1745878756746,0.14182714,94621.0,94620.0,0.013]
[1745878762320,0.42060661,94621.0,94620.0,0.013]
[1745878762504,0.75673755,94621.0,94620.0,0.013]
[1745878762931,0.49636799,94621.0,94620.0,0.013]
[1745878763139,0.70673755,94621.0,94620.0,0.011]
[1745878763555,0.70673755,94621.0,94620.0,0.01]
[1745878763765,0.70873755,94621.0,94620.0,0.01]
[1745878764482,0.73831014,94621.0,94620.0,0.01]
[1745878764716,0.70873755,94621.0,94620.0,0.01]
[1745878764962,0.71073755,94621.0,94620.0,0.011]
[1745878765370,0.73831407,94621.0,94620.0,0.01]
[1745878765635,0.73831407,94621.0,94620.0,0.00471139]
[1745878765838,0.74031407,94621.0,94620.0,0.00571139]
[1745878774287,0.71073755,94621.0,94620.0,0.00571139]
[1745878775761,0.740376,94621.0,94620.0,0.00571139]
[1745878776006,0.84726614,94621.0,94620.0,0.00571139]
[1745878776241,0.740376,94621.0,94620.0,0.00571139]
[1745878776417,0.71073755,94621.0,94620.0,0.00571139]
[1745878777467,0.7403748,94621.0,94620.0,0.00571139]
[1745878779151,0.71073755,94621.0,94620.0,0.00571139]
[1745878788399,0.74042731,94621.0,94620.0,0.00571139]
[1745878789250,0.71073755,94621.0,94620.0,0.00571139]
[1745878794447,0.74043674,94621.0,94620.0,0.00571139]
[1745878814814,0.72074414,94621.0,94620.0,0.00571139]
[1745878827126,0.22593722,94609.0,94608.0,0.0004244]
[1745878827325,0.33282736,94609.0,94608.0,0.00056091]
[1745878827527,0.36887899,94609.0,94608.0,0.00056091]
[1745878827945,0.3762547,94609.0,94608.0,0.00056091]
[1745878828739,0.41292399,94609.0,94608.0,0.00056091]
[1745878829100,0.3772547,94609.0,94608.0,0.00256091]
[1745878830804,0.41380059,94609.0,94608.0,0.00256091]
[1745878831412,0.42041684,94609.0,94608.0,0.00256091]
[1745878833306,0.39071765,94609.0,94608.0,0.00256091]
[1745878834697,0.39071765,94609.0,94608.0,0.01256091]
[1745878837057,0.22199434,94597.0,94591.0,0.21143472]
[1745878837278,0.21142766,94595.0,94590.0,0.2300666]
[1745878837488,0.13659255,94594.0,94590.0,0.2300666]
[1745878837683,0.02970241,94593.0,94590.0,0.2300666]
[1745878837899,0.13659255,94592.0,94591.0,0.01057183]
[1745878838242,0.14955481,94592.0,94591.0,0.01457183]
[1745878838458,0.14955481,94592.0,94591.0,0.004]
[1745878838658,0.14955481,94592.0,94590.0,0.2300666]
[1745878838839,0.01979858,94591.0,94590.0,0.2300666]
[1745878839035,0.16935486,94591.0,94590.0,0.2300666]
[1745878839795,0.17673057,94591.0,94590.0,0.2300666]
[1745878840094,0.15693199,94591.0,94590.0,0.2340666]
[1745878840646,0.15693199,94591.0,94590.0,0.2350666]
[1745878841087,0.15693199,94591.0,94590.0,0.2340666]
[1745878841497,0.17772907,94591.0,94590.0,0.2350666]
[1745878844870,0.15793199,94591.0,94590.0,0.2350666]
[1745878847207,0.15793199,94591.0,94590.0,0.21126518]
[1745878847902,0.15793199,94591.0,94590.0,0.22959729]
[1745878848366,0.15793199,94591.0,94590.0,0.005]
[1745878848538,0.21152256,94591.0,94590.0,0.005]
[1745878848789,0.17247284,94591.0,94590.0,0.005]
[1745878848982,0.51247284,94591.0,94590.0,0.005]
[1745878849428,0.64119706,94591.0,94590.0,0.001]
[1745878849797,0.56597969,94590.0,94588.0,0.0004242]
[1745878849991,0.4911334,94589.0,94588.0,0.0004242]
[1745878850347,0.5113817,94589.0,94588.0,0.0004242]
[1745878851736,0.5123817,94589.0,94588.0,0.0004242]
[1745878853367,0.53215633,94589.0,94588.0,0.0004242]
[1745878853792,0.53315633,94589.0,94588.0,0.0014242]
[1745878854036,0.53315633,94589.0,94578.0,0.002]
[1745878854254,0.01057406,94571.0,94560.0,0.15688012]
[1745878854476,0.12666477,94570.0,94567.0,0.01057451]
[1745878854685,0.02970241,94569.0,94567.0,0.01057451]
[1745878854972,0.10689014,94568.0,94567.0,0.01057451]
[1745878855177,0.11967875,94568.0,94567.0,0.01057451]
[1745878855309,0.12705446,94568.0,94567.0,0.01057451]
[1745878855757,0.12705446,94568.0,94567.0,0.01457451]
[1745878855953,0.11967875,94568.0,94567.0,0.01457451]
[1745878856220,0.11967875,94568.0,94567.0,0.01057451]
[1745878856443,0.11967875,94568.0,94567.0,0.01457451]
[1745878856949,0.11967875,94568.0,94567.0,0.01557451]
[1745878857405,0.11967875,94568.0,94567.0,0.004]
[1745878857612,0.12067875,94568.0,94567.0,0.005]
[1745878858002,0.14045338,94568.0,94567.0,0.005]
[1745878858155,0.13945338,94568.0,94565.0,0.22252328]
[1745878858356,0.13945338,94568.0,94567.0,0.003]
[1745878858581,0.14045338,94568.0,94567.0,0.003]
[1745878858757,0.14045338,94568.0,94565.0,0.22252328]
[1745878858956,0.12067875,94568.0,94567.0,0.002]
[1745878859671,0.11967875,94568.0,94567.0,0.002]
[1745878860121,0.12067875,94568.0,94567.0,0.002]
[1745878860427,0.11967875,94568.0,94567.0,0.002]
[1745878860759,0.12067875,94568.0,94567.0,0.003]
[1745878860959,0.10789014,94568.0,94567.0,0.003]
[1745878861162,0.12068169,94568.0,94567.0,0.003]
[1745878862437,0.12068169,94568.0,94567.0,0.0506]
[1745878862602,0.10789014,94568.0,94567.0,0.0993]
[1745878862812,0.10789014,94568.0,94567.0,0.003]
[1745878863169,0.120612,94568.0,94567.0,0.003]
[1745878863387,0.119612,94568.0,94567.0,0.002]
[1745878863602,0.119612,94568.0,94567.0,0.003]
[1745878863787,0.120612,94568.0,94567.0,0.003]
[1745878864312,0.14925372,94568.0,94567.0,0.001]
[1745878864549,0.15025372,94568.0,94567.0,0.004]
[1745878865165,0.120612,94568.0,94567.0,0.006]
[1745878865546,0.15025369,94568.0,94567.0,0.006]
[1745878867317,0.120612,94568.0,94566.0,0.16987803]
[1745878867756,0.10789014,94568.0,94566.0,0.16987803]
[1745878868595,0.10689014,94568.0,94566.0,0.17187803]
[1745878869001,0.10789014,94568.0,94566.0,0.17387803]
[1745878870278,0.10789014,94568.0,94566.0,0.004]
[1745878870485,0.02965191,94567.0,94566.0,0.004]
[1745878870691,0.34803231,94567.0,94566.0,0.004]
[1745878870875,0.36077606,94567.0,94566.0,0.004]
[1745878871075,0.15666151,94567.0,94566.0,0.004]
[1745878871278,0.17642792,94567.0,94566.0,0.2154925]
[1745878871532,0.17642792,94567.0,94566.0,0.2134925]
[1745878871832,0.16905221,94567.0,94566.0,0.2114925]
[1745878872115,0.1502858,94567.0,94566.0,0.2134925]
[1745878872658,0.17005221,94567.0,94566.0,0.002]
[1745878872844,0.17005221,94567.0,94566.0,0.2134925]
[1745878873844,0.17742792,94567.0,94566.0,0.2134925]
[1745878875435,0.17742792,94567.0,94566.0,0.002]
[1745878883233,0.17742792,94567.0,94566.0,0.0487]
[1745878883815,0.17742792,94567.0,94566.0,0.002]
[1745878886015,0.15766151,94567.0,94566.0,0.002]
[1745878886328,0.14491776,94567.0,94566.0,0.002]
[1745878886946,0.03802762,94567.0,94566.0,0.002]
[1745878887180,0.03065191,94567.0,94566.0,0.0041148]
[1745878887654,0.03065191,94567.0,94566.0,0.002]
[1745878888141,0.02965191,94567.0,94565.0,0.21194829]
[1745878888372,0.03065191,94567.0,94566.0,0.007]
[1745878888613,0.001,94567.0,94566.0,0.007]
[1745878888837,0.03071245,94567.0,94566.0,0.00911454]
[1745878889041,0.02971245,94567.0,94566.0,0.4111]
[1745878889966,0.03071245,94567.0,94566.0,0.4111]
[1745878891084,0.02971245,94567.0,94566.0,0.4111]
[1745878891305,0.03071245,94567.0,94566.0,0.4191]
[1745878897753,0.13760259,94567.0,94566.0,0.4191]
[1745878897986,0.13760259,94567.0,94566.0,0.37149001]
[1745878898932,0.13760259,94567.0,94566.0,0.008]
[1745878900063,0.03071245,94567.0,94566.0,0.01011482]
[1745878900256,0.001,94567.0,94566.0,0.008]
[1745878907755,0.03071125,94567.0,94566.0,0.008]
[1745878908645,0.23050139,94567.0,94566.0,0.008]
[1745878908898,0.15741544,94567.0,94566.0,0.20653377]
[1745878909110,0.15741544,94567.0,94565.0,0.00045573]
[1745878909111,0.1701382,94567.0,94565.0,0.00045573]
[1745878909323,0.1340799,94566.0,94565.0,0.00045573]
[1745878909603,0.1765198,94566.0,94565.0,0.00045573]
[1745878909832,0.06962966,94566.0,94565.0,0.00045573]
[1745878910268,0.0495253,94566.0,94565.0,0.00045573]
[1745878910668,0.03071125,94566.0,94565.0,0.00345573]
[1745878910886,0.03071125,94566.0,94565.0,0.00245573]
[1745878911182,0.02971125,94566.0,94565.0,0.00045573]
[1745878911537,0.03071125,94566.0,94565.0,0.00345573]
[1745878911734,0.05052432,94566.0,94565.0,0.00345573]
[1745878912701,0.05152432,94566.0,94565.0,0.00345573]
[1745878921421,0.03171125,94566.0,94565.0,0.00345573]
[1745878922550,0.05152918,94566.0,94565.0,0.00345573]
[1745878923342,0.02181793,94566.0,94563.0,0.21149921]
[1745878923520,0.02227217,94566.0,94563.0,0.21149921]
[1745878924165,0.01981793,94565.0,94563.0,0.21149921]
[1745878924633,0.00145424,94566.0,94564.0,0.01057484]
[1745878924851,0.00045424,94566.0,94564.0,0.22207168]
[1745878925062,0.00145424,94566.0,94564.0,0.22207168]
[1745878925722,0.00045424,94566.0,94564.0,0.22207168]
[1745878925944,0.00145424,94566.0,94564.0,0.22207168]
[1745878926843,0.00145424,94566.0,94564.0,0.22307168]
[1745878927260,0.01982601,94565.0,94564.0,0.22307168]
[1745878928593,0.02082601,94565.0,94564.0,0.22307168]
[1745878929350,0.02082601,94565.0,94564.0,0.22207168]
[1745878929795,0.02082601,94565.0,94564.0,0.22307168]
[1745878933239,0.05056606,94565.0,94564.0,0.22307168]
[1745878936143,0.05056867,94565.0,94564.0,0.22307168]
[1745878946406,0.03074005,94565.0,94564.0,0.65577168]
[1745878946614,0.00045424,94566.0,94565.0,0.34]
[1745878947669,0.00045424,94566.0,94565.0,0.344]
[1745878948223,0.00145424,94566.0,94565.0,0.344]
[1745878959877,0.00145424,94566.0,94565.0,0.43776]
[1745878961930,0.00145424,94566.0,94565.0,0.344]
[1745878962140,0.00145424,94566.0,94565.0,0.43776]
[1745878962375,0.00145424,94566.0,94565.0,0.84886]
[1745878963444,0.00145424,94566.0,94565.0,0.7551]
[1745878963662,0.00145424,94566.0,94565.0,0.84886]
[1745878982997,0.0074337,94588.0,94587.0,0.21144554]
[1745878983215,0.03721098,94588.0,94587.0,0.62465961]
[1745878983440,0.0074791,94588.0,94587.0,0.62254554]
[1745878983641,4.54e-05,94588.0,94587.0,0.62254554]
[1745878984399,4.54e-05,94588.0,94587.0,0.62454554]
[1745878984857,4.54e-05,94588.0,94587.0,0.63233729]
[1745878985217,0.0020454,94588.0,94587.0,0.63233729]
[1745878986353,4.54e-05,94588.0,94587.0,0.63233729]
[1745878986627,4.54e-05,94588.0,94587.0,0.63433729]
[1745878986839,0.0010454,94588.0,94587.0,0.63433729]
[1745878989853,0.0476454,94588.0,94587.0,0.63433729]
[1745878993014,0.07734319,94588.0,94587.0,0.63433729]
[1745879000911,0.12714319,94588.0,94587.0,0.63433729]
[1745879023266,0.24146954,94588.0,94587.0,0.63433729]
[1745879023518,0.26129946,94588.0,94587.0,0.63433729]
[1745879023755,0.27428529,94588.0,94587.0,0.58673663]
[1745879024010,0.27428529,94588.0,94587.0,0.22323729]
[1745879024227,0.27328529,94588.0,94587.0,0.21923729]
[1745879024467,0.27528529,94588.0,94587.0,0.22023729]
[1745879024867,0.27528529,94588.0,94587.0,0.21923729]
[1745879024868,0.27328529,94588.0,94587.0,0.21923729]
[1745879025081,0.27428529,94588.0,94587.0,0.22023729]
[1745879025448,0.27528529,94588.0,94587.0,0.22023729]
[1745879029561,0.26784908,94588.0,94587.0,0.22023729]
[1745879033885,0.26784908,94588.0,94587.0,0.19643785]
[1745879035044,0.26784908,94588.0,94587.0,0.20424463]
[1745879041357,0.26784908,94588.0,94585.0,0.21144815]
[1745879041574,0.13658793,94587.0,94586.0,0.21144778]
[1745879042019,0.1693718,94587.0,94586.0,0.21144778]
[1745879042979,0.1703718,94587.0,94586.0,0.21144778]
[1745879043859,0.1703718,94587.0,94586.0,0.21926082]
[1745879044150,0.1713718,94587.0,94586.0,0.22026082]
[1745879046230,0.15154188,94587.0,94586.0,0.22026082]
[1745879047250,0.17136479,94587.0,94586.0,0.22026082]
[1745879049039,0.15154188,94587.0,94586.0,0.22026082]
[1745879049969,0.17136562,94587.0,94586.0,0.22026082]
[1745879053735,0.17136562,94587.0,94586.0,0.17266192]
[1745879058595,0.06447548,94587.0,94586.0,0.17266192]
[1745879058817,0.06447548,94587.0,94586.0,0.17477609]
[1745879059032,1e-08,94588.0,94587.0,0.34]
[1745879059502,0.0008484,94605.0,94603.0,0.21140978]
[1745879059723,0.0008484,94605.0,94603.0,0.35604348]
[1745879059933,0.03057182,94604.0,94603.0,0.35392978]
[1745879060162,0.0008484,94604.0,94603.0,0.35392978]
[1745879060946,0.0008484,94604.0,94603.0,0.30492978]
[1745879061553,0.0018484,94604.0,94603.0,0.30592978]
[1745879063989,0.0018484,94604.0,94603.0,0.32719304]
[1745879065013,0.0018484,94604.0,94603.0,0.69069238]
[1745879081669,0.0018484,94604.0,94603.0,1.07929238]
[1745879085532,0.0018484,94604.0,94603.0,0.8678826]
[1745879085744,0.0018484,94604.0,94603.0,1.07929238]
[1745879086746,0.0018484,94604.0,94603.0,1.07829238]
[1745879086968,0.0008484,94604.0,94603.0,1.07829238]
[1745879087165,0.0008484,94604.0,94603.0,1.08029238]
[1745879095607,0.0008484,94604.0,94603.0,1.03169238]
[1745879103687,1e-08,94604.0,94603.0,1.03169238]
[1745879103900,0.0008484,94625.0,94622.0,0.01056836]
[1745879104108,0.0008484,94625.0,94624.0,0.21136286]
[1745879104317,0.00092543,94625.0,94624.0,0.21136286]
[1745879104526,0.00092543,94625.0,94624.0,0.5534763]
[1745879104731,0.00092543,94625.0,94624.0,0.55136286]
[1745879105382,0.00492543,94625.0,94624.0,0.55136286]
[1745879105595,0.00692543,94625.0,94624.0,0.55136286]
[1745879106048,0.00092543,94625.0,94624.0,0.55236286]
[1745879106522,0.00192543,94625.0,94624.0,0.55236286]
[1745879117765,0.00192543,94625.0,94624.0,0.55236286]
[1745879120730,0.00192543,94625.0,94624.0,0.341]
[1745879123328,0.00192543,94625.0,94624.0,0.55236286]
[1745879132148,0.00192543,94625.0,94624.0,0.64568286]
[1745879133176,0.03161925,94625.0,94624.0,0.64568286]
[1745879135284,0.00192543,94625.0,94624.0,0.64568286]
[1745879136291,0.03162984,94625.0,94624.0,0.64568286]
[1745879136629,0.03162984,94625.0,94624.0,0.64560286]
[1745879143400,0.03162984,94625.0,94624.0,0.55236286]
[1745879143608,0.03162984,94625.0,94624.0,0.64560286]
[1745879165142,0.03162984,94625.0,94624.0,0.66534329]
[1745879165360,0.03162984,94625.0,94624.0,0.57210329]
[1745879165605,0.23491998,94625.0,94624.0,0.001]
[1745879165855,0.0493,94622.0,94618.0,0.21137627]
[1745879166095,0.0493,94622.0,94613.0,0.10368937]
[1745879166096,0.40383394,94621.0,94613.0,0.31507464]
[1745879166319,0.40383394,94621.0,94603.0,0.02126326]
[1745879166320,0.01057015,94606.0,94603.0,0.02126326]
[1745879166535,0.0934,94605.0,94602.0,0.22198262]
[1745879166765,0.02970441,94604.0,94602.0,0.22198262]
[1745879166980,0.02970441,94603.0,94602.0,0.22198262]
[1745879167192,0.02970441,94603.0,94602.0,0.24104839]
[1745879167737,0.02970441,94603.0,94602.0,0.24204839]
[1745879168245,0.02970441,94603.0,94602.0,0.24104839]
[1745879169104,0.03070441,94603.0,94602.0,0.22398262]
[1745879169363,0.001,94603.0,94602.0,0.23193588]
[1745879169579,0.001,94603.0,94602.0,0.23293588]
[1745879169991,0.03063779,94603.0,94602.0,0.23293588]
[1745879170945,0.001,94603.0,94602.0,0.23293588]
[1745879171562,0.03062362,94603.0,94602.0,0.23293588]
[1745879171793,0.001,94603.0,94602.0,0.23293588]
[1745879178088,0.01220424,94603.0,94602.0,0.23293588]
[1745879178288,0.001,94603.0,94602.0,0.23293588]
[1745879178490,0.01220424,94603.0,94602.0,0.23293588]
[1745879178689,0.001,94603.0,94602.0,0.23293588]
[1745879178918,0.01220424,94603.0,94602.0,0.23293588]
[1745879179120,0.001,94603.0,94602.0,0.23293588]
[1745879190657,0.03058877,94603.0,94602.0,0.23293588]
[1745879191080,0.001,94603.0,94602.0,0.23293588]
[1745879191292,0.03059026,94603.0,94602.0,0.23293588]
[1745879195677,0.001,94603.0,94602.0,0.18534326]
[1745879195897,0.001,94603.0,94602.0,0.19591386]
[1745879196119,0.0083945,94603.0,94602.0,0.19591386]
[1745879198841,0.03805947,94603.0,94602.0,0.01095326]
[1745879199065,0.21148464,94603.0,94602.0,0.01095326]
[1745879199290,0.24115117,94603.0,94602.0,0.01095326]
[1745879199575,0.25215356,94603.0,94602.0,0.01095326]
[1745879199781,0.25215356,94603.0,94602.0,0.22236528]
[1745879204540,0.24115117,94603.0,94602.0,0.22236528]
[1745879205063,0.25215356,94603.0,94602.0,0.003]
[1745879205747,0.25215356,94603.0,94600.0,0.15359093]
[1745879205964,0.10689014,94602.0,94600.0,0.16416175]
[1745879206184,0.02966653,94601.0,94600.0,0.16416175]
[1745879206399,0.14756053,94601.0,94600.0,0.16416175]
[1745879206635,0.16737765,94601.0,94600.0,0.16416175]
[1745879207099,0.17477215,94601.0,94600.0,0.16416175]
[1745879208178,0.17477215,94601.0,94600.0,0.16516175]
[1745879208392,0.17577215,94601.0,94600.0,0.16516175]
[1745879208693,0.17577215,94601.0,94600.0,0.16616175]
[1745879225584,0.17577215,94601.0,94600.0,0.002]
[1745879225854,0.17577215,94601.0,94598.0,0.18420649]
[1745879226051,0.10689014,94600.0,94598.0,0.19477753]
[1745879226273,0.04948365,94599.0,94598.0,0.19477753]
[1745879226495,0.16735187,94599.0,94598.0,0.19477753]
[1745879227134,0.17474637,94599.0,94598.0,0.19577753]
[1745879227326,0.17474637,94599.0,94598.0,0.001]
[1745879227472,0.17474637,94599.0,94598.0,0.002]
[1745879227899,0.17474637,94599.0,94598.0,0.003]
[1745879228231,0.17474637,94599.0,94598.0,0.002]
[1745879228672,0.17574637,94599.0,94598.0,0.003]
[1745879229680,0.17574637,94599.0,94598.0,0.01104034]
[1745879230474,0.17574637,94599.0,94598.0,0.00081315]
[1745879230668,0.17574637,94599.0,94596.0,0.01057127]
[1745879230945,0.14395117,94598.0,94596.0,0.01057127]
[1745879231179,0.16376829,94598.0,94596.0,0.01057127]
[1745879231395,0.04064755,94597.0,94596.0,0.2219967]
[1745879231586,0.16735481,94597.0,94596.0,0.2219967]
[1745879232059,0.17474931,94597.0,94596.0,0.2229967]
[1745879233360,0.17574931,94597.0,94596.0,0.2229967]
[1745879233775,0.17574931,94597.0,94596.0,0.2219967]
[1745879234049,0.17574931,94597.0,94596.0,0.23009812]
[1745879235837,0.17574931,94597.0,94596.0,0.20629918]
[1745879236786,0.17574931,94597.0,94596.0,0.21687045]
[1745879238766,0.17574931,94597.0,94596.0,0.00810142]
[1745879238951,0.17574931,94597.0,94596.0,0.21952685]
[1745879239261,0.17574931,94597.0,94596.0,0.21142543]
[1745879239723,0.06885917,94597.0,94596.0,0.21142543]
[1745879240188,0.03806103,94597.0,94596.0,0.21142543]
[1745879240404,0.03066653,94597.0,94596.0,0.21142543]
[1745879240838,0.03066653,94597.0,94596.0,0.21954468]
[1745879252325,0.03066653,94597.0,94596.0,0.74768468]
[1745879252326,0.001,94597.0,94596.0,0.74768468]
[1745879252556,1e-08,94597.0,94596.0,1.26567482]
[1745879253205,1e-08,94597.0,94596.0,1.15878468]
[1745879253422,1e-08,94597.0,94596.0,1.06574468]
[1745879253641,1e-08,94597.0,94596.0,1.06368468]
[1745879265766,1e-08,94597.0,94596.0,0.97064468]
[1745879269882,1e-08,94597.0,94592.0,0.01057171]
[1745879269883,0.15549015,94597.0,94592.0,0.01057171]
[1745879270120,0.13657581,94596.0,94595.0,0.21142766]
[1745879270330,0.17482301,94596.0,94595.0,0.21142766]
[1745879271204,0.1673956,94596.0,94595.0,0.21142766]
[1745879272168,0.1703956,94596.0,94595.0,0.21142766]
[1745879272380,0.1733956,94596.0,94595.0,0.21242766]
[1745879273966,0.1733956,94596.0,94595.0,0.001]
[1745879296134,0.18396687,94596.0,94593.0,0.0105716]
[1745879296539,0.02968567,94595.0,94593.0,0.0105716]
[1745879296755,0.01980639,94594.0,94593.0,0.0105716]
[1745879296927,0.04949206,94594.0,94593.0,0.0105716]
[1745879297139,0.06033263,94594.0,94593.0,0.0105716]
[1745879297867,0.06233263,94594.0,94593.0,0.0115716]
[1745879298475,0.06233263,94594.0,94593.0,0.0105716]